bitfinex/quotes_BTCUSD_20230906
["timestamp","ask_amount","ask_price","bid_price","bid_amount"]
[1694009031466,3.30264696,25704.0,25703.0,0.002]
[1694009031891,3.53684696,25704.0,25703.0,0.002]
[1694009032108,0.9,25696.0,25693.0,0.934198]
[1694009032328,0.9,25696.0,25694.0,1.556782]
[1694009032329,0.2326638,25696.0,25694.0,1.556782]
[1694009032548,0.2326638,25696.0,25694.0,1.56957247]
[1694009032761,0.09306552,25695.0,25694.0,0.01279047]
[1694009032981,0.61930907,25695.0,25694.0,0.01279047]
[1694009033197,0.61930907,25695.0,25694.0,0.79118147]
[1694009033198,0.23266254,25695.0,25694.0,0.79118147]
[1694009033402,0.23266254,25695.0,25694.0,2.34796347]
[1694009033403,0.09306426,25695.0,25694.0,2.34796347]
[1694009033866,0.09306426,25695.0,25694.0,0.01279047]
[1694009033867,0.87142526,25695.0,25694.0,0.01279047]
[1694009034068,3.01857458,25695.0,25694.0,0.01279047]
[1694009034281,3.8634696,25695.0,25694.0,0.01279047]
[1694009034488,3.8434696,25695.0,25694.0,0.01279047]
[1694009034700,4.10097583,25695.0,25694.0,0.01279047]
[1694009034929,4.08983278,25695.0,25694.0,0.01279047]
[1694009035135,4.07879461,25695.0,25694.0,0.01279047]
[1694009035345,4.07879461,25695.0,25691.0,0.778466]
[1694009035548,0.99304316,25693.0,25691.0,0.778466]
[1694009035782,0.99304316,25693.0,25691.0,1.556948]
[1694009035783,0.38664527,25692.0,25691.0,1.556948]
[1694009035988,0.09304316,25694.0,25692.0,0.0708]
[1694009036191,0.09304316,25694.0,25693.0,1.556844]
[1694009036393,0.04306942,25694.0,25693.0,0.778422]
[1694009036609,1.15260791,25695.0,25693.0,1.556844]
[1694009036813,1.51925318,25695.0,25693.0,1.556844]
[1694009037024,0.09304316,25694.0,25693.0,1.556844]
[1694009037226,1.55925318,25695.0,25693.0,1.556844]
[1694009037432,1.51925318,25695.0,25693.0,2.335266]
[1694009037723,0.47968843,25695.0,25693.0,2.18170077]
[1694009037931,0.012,25694.0,25693.0,2.18170077]
[1694009038155,0.87143416,25694.0,25692.0,0.77845]
[1694009038356,0.87143416,25694.0,25689.0,0.778518]
[1694009038357,0.38664527,25693.0,25689.0,0.778518]
[1694009038562,1.25811043,25693.0,25690.0,0.778498]
[1694009038813,1.25811043,25693.0,25689.0,0.778518]
[1694009038814,0.9,25692.0,25689.0,0.778518]
[1694009039042,2.84358427,25692.0,25689.0,0.778518]
[1694009039239,2.93662743,25692.0,25689.0,0.778518]
[1694009039493,2.84358427,25692.0,25689.0,0.778518]
[1694009039739,2.84358427,25692.0,25688.0,1.557114]
[1694009039984,2.84358427,25692.0,25689.0,1.557079]
[1694009039985,0.38664527,25691.0,25689.0,1.557079]
[1694009040212,0.38664527,25691.0,25689.0,0.778536]
[1694009040417,0.38664527,25691.0,25689.0,0.007]
[1694009040624,1.94361727,25691.0,25689.0,0.007]
[1694009041044,1.16512727,25691.0,25689.0,0.007]
[1694009041249,0.38664527,25691.0,25688.0,0.778548]
[1694009041456,0.38664527,25691.0,25687.0,1.557181]
[1694009041457,2.03666643,25691.0,25687.0,1.557181]
[1694009041672,0.09304316,25690.0,25689.0,0.012]
[1694009041905,0.09304316,25690.0,25685.0,0.77946352]
[1694009041906,0.89989995,25687.0,25685.0,0.00082552]
[1694009042120,0.4796333,25686.0,25685.0,0.00082552]
[1694009042333,0.4796333,25686.0,25677.0,0.46419615]
[1694009042334,0.92,25683.0,25677.0,0.46419615]
[1694009042569,0.04,25677.0,25676.0,0.019998]
[1694009042807,0.04,25677.0,25676.0,0.014998]
[1694009042808,2.457814,25677.0,25676.0,0.014998]
[1694009043033,0.015,25676.0,25671.0,0.884078]
[1694009043249,0.9,25677.0,25674.0,0.1616]
[1694009043488,0.015,25678.0,25676.0,0.01247093]
[1694009043704,0.38664527,25682.0,25680.0,0.02]
[1694009043963,0.015,25684.0,25681.0,0.86967324]
[1694009044178,0.015,25684.0,25681.0,2.68892324]
[1694009044402,0.13948205,25686.0,25681.0,2.497955]
[1694009044403,0.38664527,25682.0,25681.0,2.497955]
[1694009044619,0.1,25684.0,25681.0,1.557557]
[1694009045086,0.024,25682.0,25681.0,0.778772]
[1694009045267,0.024,25682.0,25681.0,1.557557]
[1694009045473,0.024,25682.0,25681.0,1.95373081]
[1694009045716,0.19635985,25688.0,25683.0,0.0166]
[1694009045919,0.024,25684.0,25683.0,0.795297]
[1694009046104,0.024,25684.0,25683.0,2.035622]
[1694009046363,0.024,25684.0,25683.0,2.127782]
[1694009046588,0.1274,25684.0,25683.0,0.08862]
[1694009046810,0.1274,25684.0,25681.0,0.778785]
[1694009047021,0.0434,25682.0,25681.0,0.778785]
[1694009047236,0.08777043,25684.0,25680.0,1.557592]
[1694009047237,0.0434,25681.0,25680.0,1.557592]
[1694009047454,0.0434,25681.0,25680.0,0.778795]
[1694009048114,14.31172907,25676.0,25674.0,0.3395]
[1694009048335,14.31172907,25676.0,25675.0,1.204447]
[1694009048336,14.3254995,25676.0,25675.0,1.204447]
[1694009048549,14.26172907,25676.0,25675.0,2.765261]
[1694009048762,14.26172907,25676.0,25675.0,2.765921]
[1694009048998,14.26172907,25676.0,25675.0,2.42154386]
[1694009049233,14.26172907,25676.0,25675.0,2.34834386]
[1694009049234,14.26272907,25676.0,25675.0,2.34834386]
[1694009049654,14.26272907,25676.0,25675.0,0.01144286]
[1694009049655,15.54937434,25676.0,25675.0,0.01144286]
[1694009049865,14.64937434,25676.0,25675.0,0.01144286]
[1694009050075,15.54937434,25676.0,25674.0,0.778978]
[1694009050333,0.38664527,25675.0,25673.0,0.779007]
[1694009050545,0.38664527,25675.0,25670.0,0.0001]
[1694009050546,0.04,25671.0,25670.0,0.0001]
[1694009050769,0.04,25671.0,25669.0,0.019998]
[1694009050770,0.5881557,25671.0,25669.0,0.019998]
[1694009050980,0.0434,25668.0,25667.0,0.799201]
[1694009051204,0.0434,25668.0,25667.0,1.578394]
[1694009051418,0.10377043,25671.0,25667.0,1.739994]
[1694009051645,0.2175,25674.0,25669.0,0.1616]
[1694009051646,0.0434,25674.0,25669.0,0.1616]
[1694009051871,14.26172907,25676.0,25671.0,0.0566]
[1694009052095,14.26172907,25676.0,25675.0,0.1782]
[1694009052315,14.26172907,25676.0,25675.0,2.65315911]
[1694009052519,14.26172907,25676.0,25675.0,2.498501]
[1694009053003,14.26172907,25676.0,25675.0,2.515101]
[1694009053223,14.26172907,25676.0,25675.0,3.120501]
[1694009053436,11.71787807,25676.0,25675.0,4.55949154]
[1694009053651,9.84145107,25676.0,25675.0,4.61169864]
[1694009053876,4.48680907,25676.0,25675.0,4.60617864]
[1694009054127,0.1034,25688.0,25682.0,0.4257]
[1694009054345,0.1034,25688.0,25683.0,4.43037338]
[1694009054346,0.0834,25687.0,25683.0,4.43037338]
[1694009054560,0.0834,25687.0,25686.0,0.1616]
[1694009054777,0.0834,25687.0,25686.0,1.71192611]
[1694009054987,0.9834,25687.0,25686.0,0.78938467]
[1694009055202,1.0034,25687.0,25686.0,0.01075067]
[1694009055418,2.94725127,25687.0,25686.0,0.01075067]
[1694009055630,4.28585427,25687.0,25679.0,0.940426]
[1694009055845,0.225,25680.0,25679.0,0.778826]
[1694009056057,0.0434,25679.0,25678.0,0.778856]
[1694009056269,0.12717043,25679.0,25678.0,0.778856]
[1694009056445,0.225,25679.0,25678.0,0.778856]
[1694009056728,0.778768,25682.0,25678.0,2.5702756]
[1694009056729,0.0434,25681.0,25678.0,2.5702756]
[1694009056936,0.0434,25681.0,25678.0,2.6519956]
[1694009056937,0.0234,25680.0,25678.0,2.6519956]
[1694009057163,0.0234,25680.0,25678.0,2.53969889]
[1694009057374,0.1034,25683.0,25679.0,0.45756527]
[1694009057591,0.1034,25683.0,25680.0,3.11524]
[1694009057592,0.0834,25683.0,25680.0,3.11524]
[1694009057807,0.0834,25683.0,25680.0,2.42589]
[1694009057808,0.1034,25683.0,25680.0,2.42589]
[1694009058032,0.3064,25681.0,25679.0,1.55767]
[1694009058249,0.3064,25681.0,25680.0,0.77881]
[1694009058463,0.0634,25680.0,25679.0,0.778828]
[1694009058683,0.0434,25679.0,25678.0,0.778872]
[1694009058895,0.0434,25679.0,25674.0,1.2896]
[1694009058896,0.0834,25678.0,25674.0,1.2896]
[1694009059107,0.06377043,25677.0,25675.0,1.078953]
[1694009059371,0.0834,25678.0,25675.0,1.078953]
[1694009059578,0.0834,25678.0,25675.0,1.857914]
[1694009059993,0.0834,25678.0,25675.0,1.925063]
[1694009060201,0.0834,25678.0,25675.0,1.930163]
[1694009060414,0.0834,25678.0,25675.0,2.79109027]
[1694009060642,0.0864,25678.0,25675.0,2.79415027]
[1694009060850,0.0864,25678.0,25675.0,2.79745027]
[1694009061059,0.0864,25678.0,25675.0,2.72453027]
[1694009061060,0.0914,25678.0,25675.0,2.72453027]
[1694009061276,0.0834,25676.0,25675.0,0.001]
[1694009061493,2.3346897,25676.0,25675.0,0.001]
[1694009061703,2.3346897,25676.0,25671.0,0.779073]
[1694009061704,1.49198227,25676.0,25671.0,0.779073]
[1694009061940,0.0834,25674.0,25673.0,0.779022]
[1694009062159,0.0834,25674.0,25673.0,1.55805]
[1694009062370,0.0834,25674.0,25673.0,0.779022]
[1694009062585,0.0834,25674.0,25673.0,1.55805]
[1694009062795,0.0834,25674.0,25672.0,0.7379275]
[1694009063472,0.0834,25674.0,25672.0,1.5169705]
[1694009063697,0.0834,25674.0,25670.0,0.9896]
[1694009063698,0.71304527,25674.0,25670.0,0.9896]
[1694009063905,0.3064,25671.0,25670.0,0.9896]
[1694009064127,0.3064,25671.0,25669.0,0.779147]
[1694009064343,0.3064,25671.0,25669.0,0.779135]
[1694009064344,0.0434,25671.0,25669.0,0.779135]
[1694009064581,0.0834,25671.0,25670.0,2.337357]
[1694009064790,0.0834,25671.0,25670.0,2.57434347]
[1694009064998,0.2438,25675.0,25670.0,2.57434347]
[1694009064999,0.0634,25673.0,25670.0,2.46007983]
[1694009065220,0.023,25674.0,25670.0,2.72837794]
[1694009065221,0.0894,25674.0,25670.0,2.72837794]
[1694009065424,0.003,25674.0,25671.0,0.04]
[1694009065637,0.003,25674.0,25672.0,3.116232]
[1694009065854,0.003,25674.0,25670.0,0.43153168]
[1694009065855,0.2864,25673.0,25670.0,0.7907588]
[1694009066052,0.2864,25673.0,25671.0,1.558166]
[1694009066258,0.0834,25672.0,25671.0,1.558166]
[1694009066473,0.0834,25672.0,25671.0,2.337255]
[1694009066677,0.003,25674.0,25671.0,2.410275]
[1694009066678,0.0434,25673.0,25671.0,2.410275]
[1694009066892,0.0434,25673.0,25671.0,2.431935]
[1694009067097,0.0434,25673.0,25671.0,2.337255]
[1694009067309,0.0434,25673.0,25671.0,1.40447515]
[1694009067516,0.0434,25673.0,25671.0,0.62538615]
[1694009067942,0.0834,25671.0,25670.0,0.7897538]
[1694009068164,0.0834,25671.0,25670.0,0.0106578]
[1694009068367,2.02822327,25671.0,25670.0,0.0106578]
[1694009068570,0.0834,25668.0,25667.0,0.799178]
[1694009068785,0.14717043,25668.0,25667.0,0.019998]
[1694009069006,0.0834,25668.0,25667.0,0.019998]
[1694009069225,0.86258,25668.0,25667.0,0.019998]
[1694009069434,0.86258,25668.0,25666.0,99.9988837]
[1694009069435,0.08329995,25667.0,25666.0,99.9988837]
[1694009069660,0.32629995,25667.0,25666.0,99.9988837]
[1694009070304,1.61294522,25667.0,25666.0,99.9988837]
[1694009070527,3.17136522,25667.0,25666.0,99.9988837]
[1694009070738,0.32629995,25667.0,25666.0,99.9988837]
[1694009070963,1.9,25667.0,25666.0,101.5573657]
[1694009071172,1.9,25667.0,25666.0,102.52659879]
[1694009071386,1.9,25667.0,25666.0,102.51885879]
[1694009071596,1.94329995,25667.0,25666.0,102.14175879]
[1694009071814,1.94329995,25667.0,25666.0,102.22035879]
[1694009072030,1.94329995,25667.0,25666.0,101.36251779]
[1694009072255,1.94329995,25667.0,25666.0,101.36351779]
[1694009072256,1.94629995,25667.0,25666.0,101.36351779]
[1694009072466,1.94829995,25667.0,25666.0,101.36551779]
[1694009072685,1.94829995,25667.0,25666.0,101.44663779]
[1694009072895,1.94829995,25667.0,25666.0,102.23259879]
[1694009073118,1.902,25667.0,25666.0,102.23441879]
[1694009073339,1.902,25667.0,25666.0,103.02436406]
[1694009073340,1.904,25667.0,25666.0,103.02436406]
[1694009073547,1.904,25667.0,25666.0,103.17676406]
[1694009073756,1.902,25667.0,25666.0,103.57236933]
[1694009073964,1.902,25667.0,25666.0,103.56996933]
[1694009074175,1.902,25667.0,25666.0,104.04210933]
[1694009074176,0.82773767,25667.0,25666.0,104.04210933]
[1694009074387,0.82573767,25667.0,25666.0,104.09939643]
[1694009074640,0.82573767,25667.0,25666.0,104.09531643]
[1694009074852,0.82773767,25667.0,25666.0,104.06215643]
[1694009075064,0.04329995,25672.0,25669.0,0.04]
[1694009075282,0.04329995,25672.0,25670.0,3.68077938]
[1694009075499,0.04329995,25675.0,25672.0,0.02]
[1694009075714,0.04329995,25675.0,25673.0,3.68031938]
[1694009075964,0.03989995,25678.0,25675.0,0.04]
[1694009076195,0.03989995,25678.0,25676.0,3.27040611]
[1694009076410,0.03989995,25678.0,25676.0,3.35500611]
[1694009076614,0.03989995,25678.0,25677.0,0.07206]
[1694009076844,0.03989995,25678.0,25677.0,2.432301]
[1694009076845,0.06329995,25678.0,25677.0,2.432301]
[1694009077045,0.06329995,25678.0,25677.0,1.557814]
[1694009077046,0.08329995,25678.0,25677.0,1.557814]
[1694009077261,0.08329995,25678.0,25677.0,2.336721]
[1694009077902,0.08329995,25678.0,25677.0,2.14195101]
[1694009077903,0.04329995,25678.0,25677.0,2.14195101]
[1694009078116,0.03989995,25678.0,25677.0,2.59985464]
[1694009078325,0.04329995,25678.0,25677.0,2.57903464]
[1694009078531,0.06429995,25678.0,25677.0,2.57909464]
[1694009078754,0.10429995,25678.0,25677.0,2.411661]
[1694009078968,0.10429995,25678.0,25677.0,1.557814]
[1694009079238,0.08329995,25676.0,25675.0,0.778953]
[1694009079500,0.08329995,25676.0,25669.0,0.07332]
[1694009079501,0.04329995,25671.0,25669.0,0.07332]
[1694009079739,0.04329995,25671.0,25670.0,1.558238]
[1694009079953,0.04329995,25671.0,25670.0,2.92171079]
[1694009080161,0.08329995,25671.0,25670.0,1.36347279]
[1694009080579,0.08329995,25671.0,25670.0,2.14259179]
[1694009081018,0.08329995,25671.0,25670.0,2.337357]
[1694009081019,0.06329995,25671.0,25670.0,2.337357]
[1694009081217,0.04189995,25671.0,25670.0,3.16282407]
[1694009081424,0.04189995,25671.0,25670.0,3.14986407]
[1694009081633,0.04189995,25671.0,25670.0,3.12994407]
[1694009081843,0.04189995,25671.0,25670.0,2.409497]
[1694009082049,0.06529995,25671.0,25670.0,2.30092886]
[1694009082525,0.08529995,25671.0,25670.0,2.30092886]
[1694009082735,0.08729995,25671.0,25670.0,2.30192886]
[1694009083151,0.06729995,25671.0,25670.0,2.70592588]
[1694009083354,0.04729995,25671.0,25670.0,2.71192588]
[1694009083565,0.04729995,25671.0,25670.0,3.13669115]
[1694009083792,0.04729995,25671.0,25670.0,3.52931115]
[1694009083793,0.04529995,25671.0,25670.0,3.52931115]
[1694009083999,0.04329995,25671.0,25670.0,3.53595115]
[1694009084205,0.05029995,25671.0,25670.0,3.53843115]
[1694009084409,0.00029995,25671.0,25670.0,3.44081974]
[1694009084621,0.00029995,25671.0,25670.0,3.43853974]
[1694009084865,0.00029995,25671.0,25670.0,3.44171974]
[1694009085086,0.02,25672.0,25670.0,3.43101974]
[1694009085288,0.003,25671.0,25670.0,3.02003447]
[1694009085505,0.003,25671.0,25670.0,2.89917735]
[1694009085723,0.003,25671.0,25670.0,3.14820399]
[1694009085934,0.003,25671.0,25670.0,3.14844399]
[1694009086140,0.003,25671.0,25670.0,3.14670399]
[1694009086347,0.006,25671.0,25670.0,3.15182399]
[1694009086561,0.006,25671.0,25670.0,3.14600399]
[1694009086776,0.003,25671.0,25670.0,3.1550942]
[1694009086991,0.003,25671.0,25670.0,3.1409542]
[1694009087202,0.005,25671.0,25670.0,3.1454142]
[1694009087423,0.005,25671.0,25670.0,2.83136721]
[1694009087657,0.005,25671.0,25670.0,2.83334721]
[1694009087865,0.02,25674.0,25670.0,3.25959248]
[1694009088074,0.02,25673.0,25672.0,0.4091]
[1694009088295,0.02,25673.0,25672.0,4.30439]
[1694009088514,0.02,25673.0,25672.0,4.37417]
[1694009088758,0.02,25673.0,25672.0,4.30439]
[1694009088979,0.02,25673.0,25671.0,1.558157]
[1694009088980,0.015,25672.0,25671.0,1.558157]
[1694009089195,0.035,25672.0,25671.0,1.48130559]
[1694009090500,0.035,25671.0,25670.0,1.55553021]
[1694009090707,0.035,25671.0,25670.0,1.5171225]
[1694009091124,0.035,25670.0,25669.0,0.779139]
[1694009091335,0.035,25670.0,25668.0,0.779155]
[1694009091545,0.035,25670.0,25669.0,2.337447]
[1694009091753,0.035,25670.0,25668.0,0.779155]
[1694009091959,1.143,25671.0,25668.0,0.779155]
[1694009091960,0.035,25669.0,25668.0,0.779155]
[1694009093020,0.035,25669.0,25668.0,1.55564521]
[1694009093234,0.035,25669.0,25667.0,0.779193]
[1694009093646,0.035,25668.0,25667.0,0.779193]
[1694009093858,0.035,25668.0,25667.0,1.558388]
[1694009094099,0.035,25668.0,25666.0,89.25761671]
[1694009094100,0.195,25667.0,25666.0,89.25761671]
[1694009094341,1.83797158,25667.0,25666.0,74.599671]
[1694009094556,4.87026918,25667.0,25666.0,67.39501757]
[1694009094768,5.62902755,25667.0,25666.0,64.21713359]
[1694009094996,5.62902755,25667.0,25666.0,64.22650255]
[1694009094997,3.98034945,25667.0,25666.0,64.22650255]
[1694009095291,3.98748945,25667.0,25666.0,64.22650255]
[1694009095516,3.98748945,25667.0,25666.0,56.48369778]
[1694009095517,5.40853416,25667.0,25666.0,56.48369778]
[1694009095715,12.17623615,25667.0,25666.0,52.95866689]
[1694009095957,12.17623615,25667.0,25666.0,52.61743582]
[1694009095958,4.8050676,25667.0,25666.0,52.61743582]
[1694009096177,3.58871418,25667.0,25666.0,52.61743582]
[1694009096383,3.41319997,25667.0,25666.0,52.61743582]
[1694009096623,1.68987898,25667.0,25666.0,52.57724524]
[1694009096840,1.09061146,25667.0,25666.0,52.42258713]
[1694009097059,3.46828485,25667.0,25666.0,52.42258713]
[1694009097250,4.38810635,25667.0,25666.0,52.42458713]
[1694009097453,3.52383095,25667.0,25666.0,52.42358713]
[1694009097662,4.77904095,25667.0,25666.0,52.22273844]
[1694009097911,4.95056057,25667.0,25666.0,52.22373844]
[1694009098133,5.90675961,25667.0,25666.0,52.22373844]
[1694009098346,5.90675961,25667.0,25666.0,52.22473844]
[1694009098347,6.12782166,25667.0,25666.0,52.22473844]
[1694009098553,6.17564166,25667.0,25666.0,52.22373844]
[1694009098768,5.62782166,25667.0,25666.0,52.22473844]
[1694009098991,5.58156576,25667.0,25666.0,52.22473844]
[1694009099207,5.41320901,25667.0,25666.0,52.22473844]
[1694009099427,5.41320901,25667.0,25666.0,52.37939655]
[1694009099428,4.29971473,25667.0,25666.0,52.37939655]
[1694009099642,1.97861146,25667.0,25666.0,52.22473844]
[1694009099846,1.81461146,25667.0,25666.0,52.02066763]
[1694009100064,2.36525673,25667.0,25666.0,52.02166763]
[1694009100506,3.87567673,25667.0,25666.0,52.01966763]
[1694009100749,4.67888673,25667.0,25666.0,51.82581894]
[1694009100969,4.67888673,25667.0,25666.0,51.82681894]
[1694009100970,4.00131673,25667.0,25666.0,51.82681894]
[1694009101178,5.00288673,25667.0,25666.0,51.82681894]
[1694009101390,5.20066092,25667.0,25666.0,51.82581894]
[1694009101632,5.17108092,25667.0,25666.0,51.63097025]
[1694009101854,5.27444092,25667.0,25666.0,51.63197025]
[1694009102281,5.15892673,25667.0,25666.0,51.63197025]
[1694009102492,5.15892673,25667.0,25666.0,51.87497025]
[1694009102493,4.37971673,25667.0,25666.0,51.87497025]
[1694009102715,3.67971673,25667.0,25666.0,51.87497025]
[1694009102944,4.45892673,25667.0,25666.0,51.43712156]
[1694009103159,4.45892673,25667.0,25666.0,51.24227287]
[1694009103367,4.52003814,25667.0,25666.0,51.24227287]
[1694009103572,1.88240814,25667.0,25666.0,51.48527287]
[1694009104195,1.88240814,25667.0,25666.0,51.29042418]
[1694009104408,2.42557814,25667.0,25666.0,51.29042418]
[1694009104634,2.50557814,25667.0,25666.0,51.29042418]
[1694009104843,3.28478814,25667.0,25666.0,51.29042418]
[1694009105054,4.36399814,25667.0,25666.0,51.29042418]
[1694009105275,4.44079814,25667.0,25666.0,51.04742418]
[1694009105460,4.44079814,25667.0,25666.0,50.85261393]
[1694009105461,4.45171814,25667.0,25666.0,50.85261393]
[1694009105711,4.45171814,25667.0,25666.0,49.67136124]
[1694009105712,5.47017285,25667.0,25666.0,49.67136124]
[1694009105936,5.72279206,25667.0,25666.0,45.47054724]
[1694009106152,5.72279206,25667.0,25666.0,44.73283053]
[1694009106153,5.69798455,25667.0,25666.0,44.73283053]
[1694009106367,6.03436688,25667.0,25666.0,44.53798184]
[1694009106581,6.03436688,25667.0,25666.0,39.9053147]
[1694009106582,8.2314819,25667.0,25666.0,39.9053147]
[1694009106806,8.2314819,25667.0,25666.0,31.75753833]
[1694009106807,7.01442818,25667.0,25666.0,31.75753833]
[1694009107022,6.09777549,25667.0,25666.0,31.74727355]
[1694009107235,7.58390402,25667.0,25666.0,31.55242486]
[1694009107461,6.08209302,25667.0,25666.0,31.55142486]
[1694009107676,6.07089549,25667.0,25666.0,28.32693686]
[1694009107917,6.30391428,25667.0,25666.0,28.32693686]
[1694009108133,6.30913428,25667.0,25666.0,28.32693686]
[1694009108342,6.28765247,25667.0,25666.0,28.32693686]
[1694009108559,6.28765247,25667.0,25666.0,28.13108817]
[1694009108560,6.25610227,25667.0,25666.0,28.13108817]
[1694009108777,6.25610227,25667.0,25666.0,27.93623948]
[1694009108778,5.72715101,25667.0,25666.0,27.93623948]
[1694009108995,5.66573333,25667.0,25666.0,27.93623948]
[1694009109213,5.65985333,25667.0,25666.0,27.93623948]
[1694009109425,4.07015675,25667.0,25666.0,28.33389759]
[1694009109613,3.96078814,25667.0,25666.0,27.98442923]
[1694009109861,4.96243914,25667.0,25666.0,27.98442923]
[1694009110123,4.96681914,25667.0,25666.0,27.98442923]
[1694009110377,4.99441914,25667.0,25666.0,27.98442923]
[1694009110672,4.94431914,25667.0,25666.0,27.98442923]
[1694009110887,4.96657914,25667.0,25666.0,27.98442923]
[1694009111098,4.11686914,25667.0,25666.0,27.98442923]
[1694009111304,4.13986914,25667.0,25666.0,27.98442923]
[1694009111526,4.43986914,25667.0,25666.0,27.98442923]
[1694009111753,4.58524914,25667.0,25666.0,27.74142923]
[1694009111974,6.08039914,25667.0,25666.0,27.74142923]
[1694009112217,6.53038572,25667.0,25666.0,25.13370394]
[1694009112484,8.62994121,25667.0,25666.0,25.10675441]
[1694009112750,8.62994121,25667.0,25666.0,22.11223441]
[1694009112751,7.89914719,25667.0,25666.0,22.11223441]
[1694009112968,6.69990021,25667.0,25666.0,21.76960141]
[1694009113182,5.66838099,25667.0,25666.0,21.76460141]
[1694009113396,5.84730099,25667.0,25666.0,21.76460141]
[1694009113611,5.39684582,25667.0,25666.0,21.76460141]
[1694009113823,5.36204582,25667.0,25666.0,21.76460141]
[1694009114038,4.60557582,25667.0,25666.0,21.76460141]
[1694009114291,2.55589582,25667.0,25666.0,21.91925952]
[1694009114527,2.57989582,25667.0,25666.0,21.76460141]
[1694009114748,2.57989582,25667.0,25666.0,21.56975272]
[1694009114749,2.55589582,25667.0,25666.0,21.56975272]
[1694009114965,2.57989582,25667.0,25666.0,21.56975272]
[1694009115173,2.42381482,25667.0,25666.0,21.56975272]
[1694009115627,1.69981482,25667.0,25666.0,21.56975272]
[1694009115817,1.72381482,25667.0,25666.0,21.56975272]
[1694009116268,1.20105814,25667.0,25666.0,21.56975272]
[1694009116477,0.9,25668.0,25666.0,22.61199372]
[1694009116690,0.9,25668.0,25667.0,0.303]
[1694009116911,0.04,25670.0,25667.0,1.08221]
[1694009116912,0.96,25670.0,25667.0,1.08221]
[1694009117118,0.9,25670.0,25669.0,0.243]
[1694009117328,0.73710403,25671.0,25669.0,0.243]
[1694009117535,0.58110003,25671.0,25669.0,0.506]
[1694009117799,1.28664527,25670.0,25669.0,0.7598]
[1694009118048,1.28664527,25670.0,25669.0,0.5168]
[1694009118306,0.58110003,25671.0,25669.0,0.7598]
[1694009118307,0.56110003,25671.0,25669.0,0.7598]
[1694009118574,3.1818,25673.0,25671.0,0.02]
[1694009118824,1.02025287,25675.0,25671.0,0.02]
[1694009118825,0.12025287,25675.0,25674.0,0.06]
[1694009119073,0.5,25677.0,25675.0,0.06]
[1694009119332,0.5,25677.0,25676.0,0.243]
[1694009119592,0.09220486,25683.0,25677.0,0.06]
[1694009119593,0.9,25682.0,25677.0,0.06]
[1694009119854,0.9,25682.0,25676.0,1.17659511]
[1694009119855,1.30664527,25682.0,25678.0,1.71238011]
[1694009120113,0.92,25682.0,25681.0,0.243]
[1694009120373,1.30664527,25682.0,25679.0,0.243]
[1694009120623,0.46664527,25681.0,25679.0,0.243]
[1694009120876,0.46664527,25681.0,25679.0,0.04822954]
[1694009121127,0.08,25682.0,25679.0,0.04822954]
[1694009121376,0.02,25682.0,25681.0,0.243]
[1694009121621,0.02,25682.0,25681.0,0.245]
[1694009121622,0.024,25682.0,25681.0,0.245]
[1694009121825,0.02,25682.0,25681.0,0.243]
[1694009122247,0.024,25682.0,25681.0,1.60581996]
[1694009122810,0.024,25682.0,25681.0,2.38460496]
[1694009123002,0.024,25682.0,25681.0,2.40660496]
[1694009123003,0.048,25682.0,25681.0,2.40660496]
[1694009123447,0.048,25682.0,25681.0,2.21187008]
[1694009123869,0.5911353,25687.0,25683.0,0.02]
[1694009123870,0.0311353,25687.0,25683.0,0.02]
[1694009124076,0.0311353,25687.0,25685.0,0.243]
[1694009124292,0.12054995,25688.0,25686.0,1.557268]
[1694009124543,0.12054995,25688.0,25685.0,0.243]
[1694009124815,0.12054995,25688.0,25685.0,1.281662]
[1694009125074,0.12054995,25688.0,25686.0,0.00804022]
[1694009125568,0.12054995,25688.0,25685.0,1.09496734]
[1694009125841,0.12054995,25688.0,25687.0,0.00836453]
[1694009126079,0.12054995,25688.0,25687.0,0.78696753]
[1694009126311,0.05723735,25689.0,25687.0,0.78696753]
[1694009126767,0.9,25691.0,25688.0,0.00835383]
[1694009126982,1.28664527,25691.0,25688.0,0.00835383]
[1694009127223,1.28664527,25691.0,25688.0,0.15465811]
[1694009127224,0.9,25691.0,25688.0,0.15465811]
[1694009127442,0.024,25689.0,25688.0,1.71180311]
[1694009127658,0.024,25689.0,25688.0,1.557145]
[1694009127874,0.024,25689.0,25688.0,1.800145]
[1694009128086,0.05737955,25691.0,25688.0,1.60891196]
[1694009128297,0.08137955,25691.0,25690.0,0.243]
[1694009128520,0.08137955,25691.0,25690.0,1.800026]
[1694009128706,0.08137955,25691.0,25688.0,0.245]
[1694009128707,0.11320795,25691.0,25688.0,0.245]
[1694009128954,1.39985322,25691.0,25688.0,0.245]
[1694009129171,1.36247367,25691.0,25688.0,0.245]
[1694009129391,1.38647367,25691.0,25688.0,0.247]
[1694009129605,1.33064527,25691.0,25688.0,0.245]
[1694009129817,1.35464527,25691.0,25690.0,0.002]
[1694009130039,1.33064527,25691.0,25690.0,0.002]
[1694009130267,1.33064527,25691.0,25685.0,0.26]
[1694009130268,0.02,25687.0,25685.0,0.26]
[1694009130482,0.94,25688.0,25685.0,0.26]
[1694009130483,1.0304157,25686.0,25685.0,0.26]
[1694009131188,1.1104157,25686.0,25685.0,0.26]
[1694009131396,1.82527927,25686.0,25685.0,0.26]
[1694009131616,1.04664527,25686.0,25685.0,0.26]
[1694009131830,2.60391327,25686.0,25685.0,0.26]
[1694009132250,1.84927927,25686.0,25685.0,0.262]
[1694009132680,1.85247035,25686.0,25685.0,0.26]
[1694009133100,1.79783635,25686.0,25685.0,0.262]
[1694009133312,2.57647035,25686.0,25685.0,0.262]
[1694009133987,1.82183635,25686.0,25685.0,0.264]
[1694009134635,1.12183635,25686.0,25685.0,0.264]
[1694009135078,1.09783635,25686.0,25685.0,0.262]
[1694009135510,2.77139214,25686.0,25685.0,0.004]
[1694009135728,2.77139214,25686.0,25685.0,0.00406]
[1694009136004,2.90479944,25686.0,25685.0,0.00406]
[1694009136217,5.03404687,25686.0,25685.0,0.00406]
[1694009136456,1.4551,25680.0,25679.0,0.07199385]
[1694009136678,0.0151,25676.0,25671.0,0.779068]
[1694009136920,0.0151,25676.0,25666.0,22.33960776]